[Event "Early-Titled-Tuesday-Blitz-February-06-2024"]
[Site "Chess.com"]
[Date "2024.02.06"]
[Round "11"]
[White "Ramla2020"]
[Black "Ariadna_Atreides"]
[Result "1/2-1/2"]
[WhiteElo "2432"]
[BlackElo "2158"]
[TimeControl "180+1"]
[EndTime "10:05:43 PST"]
[Termination "Game drawn by repetition"]

1. c4 {[%clk 0:03:00.3]} 1... e5 {[%clk 0:02:59.4]} 2. g3 {[%clk 0:03:00.1]}
2... c6 {[%clk 0:02:56.1]} 3. d4 {[%clk 0:02:59.6]} 3... e4 {[%clk 0:02:55.2]}
4. d5 {[%clk 0:02:59.1]} 4... f5 {[%clk 0:02:52.6]} 5. Bg2 {[%clk 0:02:51.1]}
5... Nf6 {[%clk 0:02:51.7]} 6. f3 {[%clk 0:02:49.9]} 6... cxd5 {[%clk
0:02:36.5]} 7. cxd5 {[%clk 0:02:48.6]} 7... Bb4+ {[%clk 0:02:34.3]} 8. Bd2
{[%clk 0:02:43.8]} 8... Bxd2+ {[%clk 0:02:22.6]} 9. Qxd2 {[%clk 0:02:42.9]} 9...
O-O {[%clk 0:02:18.6]} 10. Nc3 {[%clk 0:02:40.3]} 10... Re8 {[%clk 0:02:05.9]}
11. fxe4 {[%clk 0:02:35.5]} 11... Nxe4 {[%clk 0:02:02.3]} 12. Nxe4 {[%clk
0:02:32.9]} 12... fxe4 {[%clk 0:02:02.4]} 13. e3 {[%clk 0:02:29.8]} 13... Qf6
{[%clk 0:01:49.3]} 14. Ne2 {[%clk 0:02:23.4]} 14... b6 {[%clk 0:01:42.5]} 15.
Qd4 {[%clk 0:02:15.4]} 15... Qf5 {[%clk 0:01:36.8]} 16. Rf1 {[%clk 0:02:11.4]}
16... Qh5 {[%clk 0:01:33.8]} 17. h3 {[%clk 0:01:59]} 17... Ba6 {[%clk
0:01:19.9]} 18. g4 {[%clk 0:01:54.9]} 18... Qg6 {[%clk 0:01:19.5]} 19. Rf4
{[%clk 0:01:49.9]} 19... d6 {[%clk 0:01:09.3]} 20. Nc3 {[%clk 0:01:44.4]} 20...
Nd7 {[%clk 0:00:53.1]} 21. Bxe4 {[%clk 0:01:43.6]} 21... Qh6 {[%clk 0:00:51.9]}
22. Bg2 {[%clk 0:01:32.2]} 22... Qh4+ {[%clk 0:00:43.4]} 23. Kd2 {[%clk
0:01:22]} 23... Ne5 {[%clk 0:00:42.6]} 24. Bf1 {[%clk 0:00:54.7]} 24... Bxf1
{[%clk 0:00:31]} 25. Raxf1 {[%clk 0:00:55.6]} 25... Rac8 {[%clk 0:00:29.7]} 26.
b3 {[%clk 0:00:54.9]} 26... Qxh3 {[%clk 0:00:26.7]} 27. Ne4 {[%clk 0:00:54.5]}
27... Qg2+ {[%clk 0:00:20.1]} 28. R1f2 {[%clk 0:00:42.2]} 28... Qg1 {[%clk
0:00:19.1]} 29. Rf1 {[%clk 0:00:40.8]} 29... Qg2+ {[%clk 0:00:19]} 30. R1f2
{[%clk 0:00:39.5]} 30... Qg1 {[%clk 0:00:19.2]} 31. Rf1 {[%clk 0:00:31.1]} 31...
Qg2+ {[%clk 0:00:19.3]} 1/2-1/2

[Event "Early-Titled-Tuesday-Blitz-February-06-2024"]
[Site "Chess.com"]
[Date "2024.02.06"]
[Round "11"]
[White "GMRAVEN_ON_YOUTUBE"]
[Black "AldokhinIvan"]
[Result "1-0"]
[WhiteElo "2767"]
[BlackElo "2622"]
[TimeControl "180+1"]
[EndTime "10:05:49 PST"]
[Termination "GMRAVEN_ON_YOUTUBE won on time"]

1. f4 {[%clk 0:03:00.9]} 1... d5 {[%clk 0:02:59.3]} 2. Nf3 {[%clk 0:02:59.9]}
2... Nf6 {[%clk 0:03:00.1]} 3. e3 {[%clk 0:03:00.3]} 3... Bf5 {[%clk 0:02:58.3]}
4. Nc3 {[%clk 0:02:59.4]} 4... e6 {[%clk 0:02:58]} 5. d3 {[%clk 0:03:00.1]} 5...
c5 {[%clk 0:02:54.6]} 6. Qe2 {[%clk 0:02:53]} 6... Nc6 {[%clk 0:02:54.7]} 7. h3
{[%clk 0:02:51.8]} 7... h5 {[%clk 0:02:51.4]} 8. e4 {[%clk 0:02:51.6]} 8... Bg6
{[%clk 0:02:36.3]} 9. f5 {[%clk 0:02:40.3]} 9... Bh7 {[%clk 0:02:35.5]} 10. fxe6
{[%clk 0:02:38.4]} 10... fxe6 {[%clk 0:02:32.6]} 11. exd5 {[%clk 0:02:38.8]}
11... Nd4 {[%clk 0:02:17.1]} 12. Nxd4 {[%clk 0:02:36]} 12... cxd4 {[%clk
0:02:18]} 13. Qxe6+ {[%clk 0:02:36.1]} 13... Be7 {[%clk 0:02:18.4]} 14. Nb5
{[%clk 0:02:28.4]} 14... Bg8 {[%clk 0:01:47]} 15. Qe5 {[%clk 0:02:21.5]} 15...
Qa5+ {[%clk 0:01:42.4]} 16. Bd2 {[%clk 0:02:10.6]} 16... Qxb5 {[%clk 0:01:41.8]}
17. Qxd4 {[%clk 0:02:05]} 17... Qxd5 {[%clk 0:01:33.6]} 18. Qe3 {[%clk
0:02:01.6]} 18... O-O-O {[%clk 0:01:27.4]} 19. Be2 {[%clk 0:02:00.4]} 19... Bc5
{[%clk 0:01:25.7]} 20. Qg3 {[%clk 0:01:56.8]} 20... Re8 {[%clk 0:01:19.2]} 21.
Kd1 {[%clk 0:01:57.1]} 21... Bd4 {[%clk 0:01:00.9]} 22. c3 {[%clk 0:01:50.9]}
22... Be5 {[%clk 0:01:00.5]} 23. Qf2 {[%clk 0:01:51.5]} 23... Kb8 {[%clk
0:00:57.6]} 24. Kc2 {[%clk 0:01:49.9]} 24... Bh7 {[%clk 0:00:57]} 25. Rad1
{[%clk 0:01:49.8]} 25... Rhf8 {[%clk 0:00:51.7]} 26. Qh4 {[%clk 0:01:45.3]}
26... Bxc3 {[%clk 0:00:35.4]} 27. Bxc3 {[%clk 0:01:37.8]} 27... Rxe2+ {[%clk
0:00:34.1]} 28. Kb1 {[%clk 0:01:38.7]} 28... Bg8 {[%clk 0:00:30.4]} 29. Qa4
{[%clk 0:01:34.7]} 29... Rc8 {[%clk 0:00:25.3]} 30. Rc1 {[%clk 0:01:33.4]} 30...
Qxg2 {[%clk 0:00:18.2]} 31. Rhg1 {[%clk 0:01:29.3]} 31... Qd5 {[%clk 0:00:17]}
32. Rxg7 {[%clk 0:01:28.4]} 32... Qxd3+ {[%clk 0:00:17]} 33. Ka1 {[%clk
0:01:29]} 33... Ka8 {[%clk 0:00:08.7]} 34. Rcg1 {[%clk 0:01:21.4]} 34... Qd5
{[%clk 0:00:04.6]} 35. Bxf6 {[%clk 0:01:18.8]} 35... Qe6 {[%clk 0:00:03.1]} 36.
Re7 {[%clk 0:01:01.5]} 1-0

[Event "Early-Titled-Tuesday-Blitz-February-06-2024"]
[Site "Chess.com"]
[Date "2024.02.06"]
[Round "11"]
[White "jcibarra"]
[Black "carokannlover213"]
[Result "1-0"]
[WhiteElo "2895"]
[BlackElo "2765"]
[TimeControl "180+1"]
[EndTime "10:05:50 PST"]
[Termination "jcibarra won on time"]

1. e4 {[%clk 0:03:00.1]} 1... e6 {[%clk 0:03:00.9]} 2. d4 {[%clk 0:02:59.8]}
2... d5 {[%clk 0:03:01.6]} 3. Nc3 {[%clk 0:03:00]} 3... Nf6 {[%clk 0:03:02.3]}
4. Bg5 {[%clk 0:02:59.4]} 4... h6 {[%clk 0:03:00.8]} 5. Bxf6 {[%clk 0:02:59]}
5... Qxf6 {[%clk 0:03:01.7]} 6. a3 {[%clk 0:02:59.7]} 6... c6 {[%clk 0:03:01.2]}
7. Nf3 {[%clk 0:03:00.1]} 7... Nd7 {[%clk 0:02:59.6]} 8. Bd3 {[%clk 0:03:00.6]}
8... Qd8 {[%clk 0:02:57.1]} 9. O-O {[%clk 0:03:01.1]} 9... dxe4 {[%clk
0:02:56.8]} 10. Nxe4 {[%clk 0:03:00.5]} 10... Be7 {[%clk 0:02:57]} 11. c4 {[%clk
0:02:58.7]} 11... Nf6 {[%clk 0:02:56.1]} 12. Nc3 {[%clk 0:02:58.7]} 12... O-O
{[%clk 0:02:54.5]} 13. Re1 {[%clk 0:02:58]} 13... c5 {[%clk 0:02:54.5]} 14. dxc5
{[%clk 0:02:57.8]} 14... Bxc5 {[%clk 0:02:55.4]} 15. b4 {[%clk 0:02:57.6]} 15...
Be7 {[%clk 0:02:53]} 16. Qe2 {[%clk 0:02:54.2]} 16... Bd7 {[%clk 0:02:49.3]} 17.
Ne5 {[%clk 0:02:53.1]} 17... Qc7 {[%clk 0:02:48]} 18. Rad1 {[%clk 0:02:53.6]}
18... Rad8 {[%clk 0:02:45.3]} 19. c5 {[%clk 0:02:47.6]} 19... a6 {[%clk
0:02:36.1]} 20. Rc1 {[%clk 0:02:44.4]} 20... Bc6 {[%clk 0:02:31.6]} 21. Bb1
{[%clk 0:02:41.9]} 21... Rd4 {[%clk 0:02:27.3]} 22. h3 {[%clk 0:02:35.5]} 22...
Rfd8 {[%clk 0:02:24.4]} 23. Qe3 {[%clk 0:02:27.8]} 23... Nh5 {[%clk 0:02:15.1]}
24. Nxf7 {[%clk 0:02:11.1]} 24... Kxf7 {[%clk 0:01:50.8]} 25. Qxe6+ {[%clk
0:02:10.3]} 25... Kf8 {[%clk 0:01:51.5]} 26. Bg6 {[%clk 0:02:10.2]} 26... Be8
{[%clk 0:01:44]} 27. Bxe8 {[%clk 0:02:09.7]} 27... Rxe8 {[%clk 0:01:37]} 28. Nd5
{[%clk 0:02:08.9]} 28... Qd8 {[%clk 0:00:29.1]} 29. Qf5+ {[%clk 0:01:55.5]}
29... Nf6 {[%clk 0:00:29.7]} 30. Nf4 {[%clk 0:01:55.5]} 30... Rxf4 {[%clk
0:00:20.1]} 31. Qxf4 {[%clk 0:01:56.4]} 31... Kf7 {[%clk 0:00:16.9]} 32. Qc4+
{[%clk 0:01:54.7]} 32... Qd5 {[%clk 0:00:17]} 33. c6 {[%clk 0:01:44]} 33... bxc6
{[%clk 0:00:11.1]} 34. Qxc6 {[%clk 0:01:44.3]} 34... Qxc6 {[%clk 0:00:04]} 35.
Rxc6 {[%clk 0:01:45.2]} 35... Ra8 {[%clk 0:00:04.3]} 36. Rc7 {[%clk 0:01:41.9]}
36... Ng8 {[%clk 0:00:04.9]} 37. Re5 {[%clk 0:01:38.9]} 37... Ke8 {[%clk
0:00:04.4]} 38. Ra5 {[%clk 0:01:26.4]} 38... Nf6 {[%clk 0:00:01.8]} 39. Rc6
{[%clk 0:01:25.7]} 39... Rd8 {[%clk 0:00:01.2]} 40. g3 {[%clk 0:01:21.7]} 40...
Rd1+ {[%clk 0:00:01.6]} 41. Kg2 {[%clk 0:01:22.4]} 41... Rd2 {[%clk 0:00:02.3]}
42. Re6 {[%clk 0:01:16.1]} 42... Kd7 {[%clk 0:00:02.7]} 43. Re3 {[%clk
0:01:15.2]} 43... Rd6 {[%clk 0:00:03.1]} 44. b5 {[%clk 0:01:11.5]} 44... axb5
{[%clk 0:00:02.8]} 45. Ra7+ {[%clk 0:01:10.7]} 1-0

[Event "Early-Titled-Tuesday-Blitz-February-06-2024"]
[Site "Chess.com"]
[Date "2024.02.06"]
[Round "11"]
[White "zverr1"]
[Black "Thunderbolt135"]
[Result "0-1"]
[WhiteElo "2565"]
[BlackElo "2701"]
[TimeControl "180+1"]
[EndTime "10:05:51 PST"]
[Termination "Thunderbolt135 won on time"]

1. e4 {[%clk 0:02:57.6]} 1... c5 {[%clk 0:03:00.2]} 2. Nf3 {[%clk 0:02:55.9]}
2... d6 {[%clk 0:03:00.7]} 3. Nc3 {[%clk 0:02:55.2]} 3... Nf6 {[%clk 0:03:00.9]}
4. e5 {[%clk 0:02:55.2]} 4... dxe5 {[%clk 0:03:00.3]} 5. Nxe5 {[%clk 0:02:56.1]}
5... Bd7 {[%clk 0:03:00.1]} 6. g3 {[%clk 0:02:54]} 6... Nc6 {[%clk 0:02:53.5]}
7. Nxd7 {[%clk 0:02:52.5]} 7... Qxd7 {[%clk 0:02:54.1]} 8. Bg2 {[%clk
0:02:53.3]} 8... g6 {[%clk 0:02:46.8]} 9. O-O {[%clk 0:02:49.4]} 9... Bg7 {[%clk
0:02:47.4]} 10. d3 {[%clk 0:02:48]} 10... O-O {[%clk 0:02:46.3]} 11. Ne4 {[%clk
0:02:37.3]} 11... b6 {[%clk 0:02:38.6]} 12. Rb1 {[%clk 0:02:27.3]} 12... Rac8
{[%clk 0:02:34.7]} 13. Be3 {[%clk 0:02:18.5]} 13... Nd5 {[%clk 0:02:33.7]} 14.
Bd2 {[%clk 0:02:07.5]} 14... h6 {[%clk 0:02:30.4]} 15. Nc3 {[%clk 0:02:00.5]}
15... Nf6 {[%clk 0:02:28.8]} 16. Re1 {[%clk 0:01:57.4]} 16... e6 {[%clk
0:02:26.9]} 17. Qc1 {[%clk 0:01:51.5]} 17... Kh7 {[%clk 0:02:26.6]} 18. Ne4
{[%clk 0:01:51.3]} 18... Nxe4 {[%clk 0:02:26.9]} 19. Bxe4 {[%clk 0:01:51.3]}
19... Nd4 {[%clk 0:02:23.6]} 20. c3 {[%clk 0:01:39.8]} 20... Nc6 {[%clk
0:02:22.7]} 21. Qc2 {[%clk 0:01:36.5]} 21... Rfd8 {[%clk 0:02:22]} 22. Re3
{[%clk 0:01:17]} 22... Kg8 {[%clk 0:02:06.1]} 23. Rbe1 {[%clk 0:01:14.9]} 23...
Ne5 {[%clk 0:02:02.5]} 24. h3 {[%clk 0:01:06.3]} 24... f5 {[%clk 0:01:54.8]} 25.
Bg2 {[%clk 0:00:30.5]} 25... Nxd3 {[%clk 0:01:54.8]} 26. R1e2 {[%clk 0:00:28.4]}
26... e5 {[%clk 0:01:54.5]} 27. c4 {[%clk 0:00:25.9]} 27... e4 {[%clk
0:01:54.5]} 28. Bc3 {[%clk 0:00:24.7]} 28... Nb4 {[%clk 0:01:37]} 29. Bxb4
{[%clk 0:00:20.5]} 29... cxb4 {[%clk 0:01:37.9]} 30. Qb3 {[%clk 0:00:16.3]}
30... Qd1+ {[%clk 0:01:35.9]} 31. Kh2 {[%clk 0:00:14.4]} 31... Qxb3 {[%clk
0:01:35.4]} 32. axb3 {[%clk 0:00:14.6]} 32... Bd4 {[%clk 0:01:35.5]} 33. g4
{[%clk 0:00:08.4]} 33... Bxe3 {[%clk 0:01:35.1]} 34. Rxe3 {[%clk 0:00:09.3]}
34... Rd3 {[%clk 0:01:31.3]} 35. Re2 {[%clk 0:00:06.7]} 35... Rxb3 {[%clk
0:01:28.2]} 36. gxf5 {[%clk 0:00:06.6]} 36... gxf5 {[%clk 0:01:29.1]} 37. h4
{[%clk 0:00:06.9]} 37... Rxc4 {[%clk 0:01:28.3]} 38. Bh3 {[%clk 0:00:07.5]}
38... Rc5 {[%clk 0:01:27]} 39. Rd2 {[%clk 0:00:08]} 39... a5 {[%clk 0:01:23.1]}
40. Rd6 {[%clk 0:00:07.2]} 40... Rxb2 {[%clk 0:01:22.6]} 41. Rxh6 {[%clk
0:00:05.3]} 41... Rxf2+ {[%clk 0:01:21.9]} 42. Kg3 {[%clk 0:00:05]} 42... Rf3+
{[%clk 0:01:22.5]} 43. Kg2 {[%clk 0:00:05.1]} 43... Rc2+ {[%clk 0:01:23.4]} 44.
Kg1 {[%clk 0:00:05.3]} 44... Rxh3 {[%clk 0:01:22.9]} 45. Rxb6 {[%clk 0:00:05.6]}
45... Rb3 {[%clk 0:01:21.2]} 0-1

[Event "Early-Titled-Tuesday-Blitz-February-06-2024"]
[Site "Chess.com"]
[Date "2024.02.06"]
[Round "11"]
[White "Agibileg"]
[Black "Flameboard08"]
[Result "1-0"]
[WhiteElo "2746"]
[BlackElo "2573"]
[TimeControl "180+1"]
[EndTime "10:05:53 PST"]
[Termination "Agibileg won by checkmate"]

1. d4 {[%clk 0:03:00.9]} 1... b6 {[%clk 0:02:47.1]} 2. e4 {[%clk 0:02:59.6]}
2... Bb7 {[%clk 0:02:45.7]} 3. Bd3 {[%clk 0:02:58.8]} 3... e6 {[%clk 0:02:46.3]}
4. Ne2 {[%clk 0:02:57.6]} 4... c5 {[%clk 0:02:41.5]} 5. O-O {[%clk 0:02:56.5]}
5... cxd4 {[%clk 0:02:39.9]} 6. Nxd4 {[%clk 0:02:57.4]} 6... Nc6 {[%clk
0:02:39.9]} 7. Nxc6 {[%clk 0:02:51.1]} 7... Bxc6 {[%clk 0:02:40.8]} 8. c4 {[%clk
0:02:50.4]} 8... Bc5 {[%clk 0:02:33.6]} 9. Nc3 {[%clk 0:02:51.3]} 9... Ne7
{[%clk 0:02:31]} 10. Nd5 {[%clk 0:02:48.1]} 10... exd5 {[%clk 0:02:27]} 11. exd5
{[%clk 0:02:45]} 11... Bb7 {[%clk 0:02:25.7]} 12. Bg5 {[%clk 0:02:44.4]} 12...
f6 {[%clk 0:02:16.9]} 13. Bf4 {[%clk 0:02:31.9]} 13... O-O {[%clk 0:02:07.9]}
14. Qh5 {[%clk 0:02:22.9]} 14... f5 {[%clk 0:02:02.7]} 15. Rae1 {[%clk
0:02:12.3]} 15... Ng6 {[%clk 0:02:02.6]} 16. Bxf5 {[%clk 0:01:48]} 16... Nxf4
{[%clk 0:01:33.1]} 17. Qxh7+ {[%clk 0:01:46.8]} 17... Kf7 {[%clk 0:01:33]} 18.
Re4 {[%clk 0:01:09.5]} 18... Rh8 {[%clk 0:01:15.9]} 19. Be6+ {[%clk 0:00:44.6]}
19... dxe6 {[%clk 0:01:00.7]} 20. Rxf4+ {[%clk 0:00:42.9]} 20... Ke7 {[%clk
0:00:52.2]} 21. Qxg7+ {[%clk 0:00:39.8]} 21... Kd6 {[%clk 0:00:50.6]} 22. Re1
{[%clk 0:00:32.3]} 22... Re8 {[%clk 0:00:33.1]} 23. Rf7 {[%clk 0:00:25.5]} 23...
Bc8 {[%clk 0:00:09.1]} 24. Qe5# {[%clk 0:00:15.1]} 1-0

[Event "Early-Titled-Tuesday-Blitz-February-06-2024"]
[Site "Chess.com"]
[Date "2024.02.06"]
[Round "11"]
[White "Licancabur"]
[Black "secretsuperstar7"]
[Result "1-0"]
[WhiteElo "2421"]
[BlackElo "2514"]
[TimeControl "180+1"]
[EndTime "10:05:55 PST"]
[Termination "Licancabur won on time"]

1. d4 {[%clk 0:02:59]} 1... Nf6 {[%clk 0:02:59.6]} 2. Bg5 {[%clk 0:02:58.1]}
2... Ne4 {[%clk 0:02:58.4]} 3. Bf4 {[%clk 0:02:58]} 3... d5 {[%clk 0:02:58.1]}
4. f3 {[%clk 0:02:57.6]} 4... Nf6 {[%clk 0:02:55.7]} 5. e4 {[%clk 0:02:57.4]}
5... dxe4 {[%clk 0:02:55.1]} 6. Nc3 {[%clk 0:02:57.4]} 6... exf3 {[%clk
0:02:53.8]} 7. Nxf3 {[%clk 0:02:56.8]} 7... Bg4 {[%clk 0:02:48.5]} 8. h3 {[%clk
0:02:52.8]} 8... Bh5 {[%clk 0:02:45.6]} 9. g4 {[%clk 0:02:40.6]} 9... Bg6 {[%clk
0:02:44.4]} 10. Qe2 {[%clk 0:02:28.9]} 10... c6 {[%clk 0:02:28.1]} 11. O-O-O
{[%clk 0:02:26.1]} 11... e6 {[%clk 0:02:15.4]} 12. Ne5 {[%clk 0:02:22.9]} 12...
Nbd7 {[%clk 0:02:09]} 13. h4 {[%clk 0:02:15.9]} 13... Nd5 {[%clk 0:01:45.1]} 14.
Nxd5 {[%clk 0:01:49.4]} 14... cxd5 {[%clk 0:01:43.9]} 15. Bg2 {[%clk 0:01:05.2]}
15... Nxe5 {[%clk 0:01:31.4]} 16. Bxe5 {[%clk 0:01:01.8]} 16... Rc8 {[%clk
0:01:28.7]} 17. c3 {[%clk 0:00:49.3]} 17... Qa5 {[%clk 0:01:16.3]} 18. Kd2
{[%clk 0:00:45.8]} 18... Qb6 {[%clk 0:00:54.3]} 19. Ke1 {[%clk 0:00:39]} 19...
h5 {[%clk 0:00:49.5]} 20. Bxd5 {[%clk 0:00:29.7]} 20... hxg4 {[%clk 0:00:10.9]}
21. Bb3 {[%clk 0:00:29.4]} 21... Qc6 {[%clk 0:00:06.3]} 22. d5 {[%clk
0:00:27.6]} 22... Qc5 {[%clk 0:00:02.1]} 23. dxe6 {[%clk 0:00:26.8]} 23... fxe6
{[%clk 0:00:01.7]} 24. Bxe6 {[%clk 0:00:24.7]} 1-0

[Event "Early-Titled-Tuesday-Blitz-February-06-2024"]
[Site "Chess.com"]
[Date "2024.02.06"]
[Round "11"]
[White "Evgeny81"]
[Black "Orest_Vovk"]
[Result "1-0"]
[WhiteElo "2713"]
[BlackElo "2579"]
[TimeControl "180+1"]
[EndTime "10:05:56 PST"]
[Termination "Evgeny81 won on time"]

1. e4 {[%clk 0:03:00.9]} 1... g5 {[%clk 0:02:57.3]} 2. d4 {[%clk 0:03:01.1]}
2... g4 {[%clk 0:02:57.5]} 3. Qxg4 {[%clk 0:03:00.1]} 3... d5 {[%clk 0:02:57.3]}
4. Qe2 {[%clk 0:03:00]} 4... dxe4 {[%clk 0:02:57.6]} 5. Qxe4 {[%clk 0:03:00.9]}
5... Nf6 {[%clk 0:02:57.8]} 6. Qd3 {[%clk 0:03:01.5]} 6... Nc6 {[%clk 0:02:58]}
7. Be3 {[%clk 0:02:59.3]} 7... Qd5 {[%clk 0:02:50.9]} 8. c4 {[%clk 0:02:56.1]}
8... Qa5+ {[%clk 0:02:46.8]} 9. Nc3 {[%clk 0:02:52.1]} 9... Bf5 {[%clk
0:02:44.1]} 10. Qd2 {[%clk 0:02:51.8]} 10... e5 {[%clk 0:02:31.5]} 11. d5 {[%clk
0:02:48.4]} 11... O-O-O {[%clk 0:02:20.5]} 12. Nf3 {[%clk 0:02:38.6]} 12... Bb4
{[%clk 0:02:03.4]} 13. a3 {[%clk 0:02:19.8]} 13... Ne4 {[%clk 0:01:58.1]} 14.
Qc1 {[%clk 0:02:19.9]} 14... Bxc3+ {[%clk 0:01:47.2]} 15. bxc3 {[%clk 0:02:20]}
15... Nd4 {[%clk 0:01:35.1]} 16. Nxd4 {[%clk 0:02:11.1]} 16... exd4 {[%clk
0:01:29.7]} 17. Bxd4 {[%clk 0:02:11.3]} 17... Rhe8 {[%clk 0:01:03.4]} 18. Be2
{[%clk 0:02:11.4]} 18... Nc5 {[%clk 0:01:02.4]} 19. Kf1 {[%clk 0:01:42.2]} 19...
Rxe2 {[%clk 0:00:23.6]} 20. Kxe2 {[%clk 0:01:43.1]} 20... Bd3+ {[%clk
0:00:21.7]} 21. Kf3 {[%clk 0:01:41.8]} 21... Be4+ {[%clk 0:00:13.2]} 22. Kg3
{[%clk 0:01:32]} 22... Rg8+ {[%clk 0:00:10.1]} 23. Kh4 {[%clk 0:01:31.9]} 23...
Bxg2 {[%clk 0:00:04.5]} 24. Qf4 {[%clk 0:01:25.9]} 24... Bxh1 {[%clk 0:00:03.2]}
25. Rxh1 {[%clk 0:01:25.9]} 25... Qb6 {[%clk 0:00:03]} 26. Qf5+ {[%clk
0:01:02.1]} 26... Kb8 {[%clk 0:00:03]} 27. Qf6 {[%clk 0:01:02.2]} 27... Qxf6+
{[%clk 0:00:02.3]} 28. Bxf6 {[%clk 0:01:01.6]} 28... Ne4 {[%clk 0:00:03.2]} 29.
Bd4 {[%clk 0:01:00.4]} 29... f5 {[%clk 0:00:02.9]} 30. f3 {[%clk 0:00:59.1]}
30... Nd6 {[%clk 0:00:02.8]} 31. c5 {[%clk 0:00:57]} 31... Nb5 {[%clk 0:00:03]}
32. a4 {[%clk 0:00:51.6]} 32... Na3 {[%clk 0:00:02.4]} 33. Re1 {[%clk
0:00:47.8]} 33... Nc4 {[%clk 0:00:02]} 34. Re2 {[%clk 0:00:45]} 34... Rf8 {[%clk
0:00:01.8]} 35. Kg5 {[%clk 0:00:44]} 35... Kc8 {[%clk 0:00:02]} 36. Kh6 {[%clk
0:00:44]} 1-0

[Event "Early-Titled-Tuesday-Blitz-February-06-2024"]
[Site "Chess.com"]
[Date "2024.02.06"]
[Round "11"]
[White "kingofthenil"]
[Black "pavet"]
[Result "1-0"]
[WhiteElo "2692"]
[BlackElo "2763"]
[TimeControl "180+1"]
[EndTime "10:06:01 PST"]
[Termination "kingofthenil won by checkmate"]

1. d4 {[%clk 0:02:43.9]} 1... Nf6 {[%clk 0:02:57.5]} 2. c4 {[%clk 0:02:37.8]}
2... g6 {[%clk 0:02:47.2]} 3. Nc3 {[%clk 0:02:36.9]} 3... d5 {[%clk 0:02:46.4]}
4. h4 {[%clk 0:02:31.1]} 4... dxc4 {[%clk 0:02:44.5]} 5. e4 {[%clk 0:02:26.5]}
5... c5 {[%clk 0:02:43.5]} 6. d5 {[%clk 0:02:22.3]} 6... Bg7 {[%clk 0:02:43.3]}
7. Bxc4 {[%clk 0:02:21.3]} 7... O-O {[%clk 0:02:42.8]} 8. Nge2 {[%clk
0:02:21.3]} 8... h5 {[%clk 0:02:32.2]} 9. f3 {[%clk 0:02:20]} 9... Nbd7 {[%clk
0:02:30.2]} 10. O-O {[%clk 0:02:17.8]} 10... Ne5 {[%clk 0:02:30.1]} 11. b3
{[%clk 0:02:18.5]} 11... Nxc4 {[%clk 0:02:30.2]} 12. bxc4 {[%clk 0:02:18.6]}
12... e6 {[%clk 0:02:30.6]} 13. Rb1 {[%clk 0:02:18.3]} 13... exd5 {[%clk
0:02:30.8]} 14. cxd5 {[%clk 0:02:19.2]} 14... b6 {[%clk 0:02:31.2]} 15. Bg5
{[%clk 0:02:18.1]} 15... Qc7 {[%clk 0:02:28.7]} 16. d6 {[%clk 0:02:17]} 16...
Qc6 {[%clk 0:02:26.4]} 17. e5 {[%clk 0:02:16.2]} 17... Nd7 {[%clk 0:02:22.4]}
18. Nd5 {[%clk 0:02:16.6]} 18... Kh8 {[%clk 0:02:09.3]} 19. f4 {[%clk 0:02:17]}
19... Bb7 {[%clk 0:02:07.5]} 20. Nec3 {[%clk 0:02:17.6]} 20... f6 {[%clk
0:02:03.3]} 21. Qd3 {[%clk 0:02:13.8]} 21... Kh7 {[%clk 0:01:49.4]} 22. f5
{[%clk 0:00:32.7]} 22... fxg5 {[%clk 0:01:47.3]} 23. fxg6+ {[%clk 0:00:10.7]}
23... Kh8 {[%clk 0:01:41.6]} 24. hxg5 {[%clk 0:00:05.7]} 24... Bxe5 {[%clk
0:01:24.4]} 25. Qh3 {[%clk 0:00:05.1]} 25... Bd4+ {[%clk 0:01:13]} 26. Kh1
{[%clk 0:00:05.3]} 26... Kg7 {[%clk 0:01:13]} 27. Qxh5 {[%clk 0:00:04.3]} 27...
Rh8 {[%clk 0:00:17.3]} 28. Rf7+ {[%clk 0:00:03.9]} 28... Kg8 {[%clk 0:00:17.3]}
29. Ne7# {[%clk 0:00:04.8]} 1-0

[Event "Early-Titled-Tuesday-Blitz-February-06-2024"]
[Site "Chess.com"]
[Date "2024.02.06"]
[Round "11"]
[White "karinachess1"]
[Black "unclear15"]
[Result "1/2-1/2"]
[WhiteElo "2647"]
[BlackElo "2450"]
[TimeControl "180+1"]
[EndTime "10:06:02 PST"]
[Termination "Game drawn by repetition"]

1. d4 {[%clk 0:02:57.3]} 1... Nf6 {[%clk 0:02:59.5]} 2. c4 {[%clk 0:02:56.9]}
2... e6 {[%clk 0:02:56.6]} 3. Nc3 {[%clk 0:02:56.5]} 3... Bb4 {[%clk 0:02:52.5]}
4. a3 {[%clk 0:02:56.4]} 4... Bxc3+ {[%clk 0:02:52.3]} 5. bxc3 {[%clk
0:02:57.3]} 5... O-O {[%clk 0:02:53.1]} 6. e3 {[%clk 0:02:56.4]} 6... b6 {[%clk
0:02:53.4]} 7. Bd3 {[%clk 0:02:56.4]} 7... Bb7 {[%clk 0:02:53.8]} 8. f3 {[%clk
0:02:56.7]} 8... c5 {[%clk 0:02:52.8]} 9. Ne2 {[%clk 0:02:56.3]} 9... Qc7 {[%clk
0:02:52.2]} 10. O-O {[%clk 0:02:49.4]} 10... d5 {[%clk 0:02:52]} 11. cxd5 {[%clk
0:02:41.9]} 11... exd5 {[%clk 0:02:52.9]} 12. Ng3 {[%clk 0:02:31.7]} 12... Ba6
{[%clk 0:02:51.2]} 13. Bxa6 {[%clk 0:02:19.3]} 13... Nxa6 {[%clk 0:02:52.1]} 14.
e4 {[%clk 0:02:19.1]} 14... cxd4 {[%clk 0:02:50.7]} 15. cxd4 {[%clk 0:02:20]}
15... Qd7 {[%clk 0:02:25.5]} 16. e5 {[%clk 0:02:17.3]} 16... Ne8 {[%clk
0:02:25]} 17. f4 {[%clk 0:02:16.8]} 17... f5 {[%clk 0:02:24.7]} 18. a4 {[%clk
0:02:05.1]} 18... Nec7 {[%clk 0:02:15.5]} 19. Ba3 {[%clk 0:02:04.2]} 19... Rf7
{[%clk 0:02:15.4]} 20. Qd3 {[%clk 0:02:01.1]} 20... Nb8 {[%clk 0:02:11.8]} 21.
Rfc1 {[%clk 0:01:52.2]} 21... Nc6 {[%clk 0:02:06.2]} 22. Qc3 {[%clk 0:01:23.3]}
22... Na5 {[%clk 0:02:01]} 23. Rf1 {[%clk 0:00:53.6]} 23... Nc4 {[%clk 0:01:57]}
24. Bc1 {[%clk 0:00:49.8]} 24... Ne6 {[%clk 0:01:55.4]} 25. Qd3 {[%clk
0:00:49.8]} 25... g6 {[%clk 0:01:49.4]} 26. Bd2 {[%clk 0:00:47.9]} 26... a6
{[%clk 0:01:46.1]} 27. Bc3 {[%clk 0:00:46]} 27... Rb8 {[%clk 0:01:45.5]} 28. Bb4
{[%clk 0:00:45.6]} 28... b5 {[%clk 0:01:43.6]} 29. axb5 {[%clk 0:00:41.8]} 29...
Rxb5 {[%clk 0:01:44.5]} 30. Bc3 {[%clk 0:00:31.1]} 30... Qa7 {[%clk 0:01:39.6]}
31. Ne2 {[%clk 0:00:27.3]} 31... a5 {[%clk 0:01:35.3]} 32. Rfb1 {[%clk
0:00:27.5]} 32... Rfb7 {[%clk 0:01:31.5]} 33. Rxb5 {[%clk 0:00:25.4]} 33... Rxb5
{[%clk 0:01:32.4]} 34. Qc2 {[%clk 0:00:25.4]} 34... Qb6 {[%clk 0:01:26.9]} 35.
Qa4 {[%clk 0:00:24.7]} 35... Rb1+ {[%clk 0:01:26.8]} 36. Rxb1 {[%clk 0:00:20.6]}
36... Qxb1+ {[%clk 0:01:27.7]} 37. Kf2 {[%clk 0:00:21.3]} 37... Qe4 {[%clk
0:01:08.1]} 38. Bxa5 {[%clk 0:00:20.7]} 38... Qe3+ {[%clk 0:00:58.2]} 39. Kf1
{[%clk 0:00:18]} 39... Nxf4 {[%clk 0:00:54.2]} 40. Qe8+ {[%clk 0:00:17.4]} 40...
Kg7 {[%clk 0:00:53.9]} 41. Qe7+ {[%clk 0:00:17.1]} 41... Kg8 {[%clk 0:00:54.2]}
42. Qe8+ {[%clk 0:00:13.9]} 42... Kg7 {[%clk 0:00:54.3]} 43. Qe7+ {[%clk
0:00:11.7]} 43... Kg8 {[%clk 0:00:54.3]} 44. Qe8+ {[%clk 0:00:11]} 1/2-1/2